[Event "MČR družstev mladších žáků 2024"]
[Site "Harrachov, Czech Republic"]
[Date "2024.06.15"]
[Round "6.16"]
[White "Zavrel Daniel"]
[Black "Dvorak Vojtech"]
[Result "0-1"]
[TimeControl "25+10"]
[WhiteFideId "23753951"]
[BlackFideId "23742089"]
[WhiteElo "1106"]
[BlackElo "1154"]

1. e4 {[%clk 00:25:17]} {[%emt 00:00:03]} e5 {[%clk 00:25:19]} {[%emt
00:00:02]} 2. Nf3 {[%clk 00:25:24]} {[%emt 00:00:02]} Nc6 {[%clk 00:25:28]}
{[%emt 00:00:02]} 3. Bc4 {[%clk 00:25:32]} {[%emt 00:00:02]} Nf6 {[%clk
00:25:32]} {[%emt 00:00:06]} 4. Nc3 {[%clk 00:25:37]} {[%emt 00:00:04]} Bc5
{[%clk 00:25:38]} {[%emt 00:00:05]} 5. O-O {[%clk 00:25:34]} {[%emt 00:00:13]}
O-O {[%clk 00:25:40]} {[%emt 00:00:08]} 6. d3 {[%clk 00:25:40]} {[%emt
00:00:03]} h6 {[%clk 00:25:49]} {[%emt 00:00:03]} 7. Be3 {[%clk 00:25:46]}
{[%emt 00:00:03]} d6 {[%clk 00:25:56]} {[%emt 00:00:03]} 8. h3 {[%clk
00:25:54]} {[%emt 00:00:02]} Be6 {[%clk 00:26:04]} {[%emt 00:00:02]} 9. Bb3
{[%clk 00:25:50]} {[%emt 00:00:14]} Qd7 {[%clk 00:25:50]} {[%emt 00:00:24]} 10.
Bxe6 {[%clk 00:24:58]} {[%emt 00:01:01]} Qxe6 {[%clk 00:25:28]} {[%emt
00:00:32]} 11. Re1 {[%clk 00:23:47]} {[%emt 00:01:21]} Bb4 {[%clk 00:24:50]}
{[%emt 00:00:47]} 12. a3 {[%clk 00:23:38]} {[%emt 00:00:21]} Bxc3 {[%clk
00:24:54]} {[%emt 00:00:06]} 13. bxc3 {[%clk 00:23:41]} {[%emt 00:00:07]} Rfd8
{[%clk 00:24:49]} {[%emt 00:00:15]} 14. Qd2 {[%clk 00:23:06]} {[%emt 00:00:43]}
d5 {[%clk 00:23:59]} {[%emt 00:01:01]} 15. exd5 {[%clk 00:22:38]} {[%emt
00:00:39]} Rxd5 {[%clk 00:22:54]} {[%emt 00:01:14]} 16. c4 {[%clk 00:17:39]}
{[%emt 00:05:08]} Rd7 {[%clk 00:22:44]} {[%emt 00:00:22]} 17. Rab1 {[%clk
00:17:06]} {[%emt 00:00:39]} b6 {[%clk 00:22:45]} {[%emt 00:00:12]} 18. Qc3
{[%clk 00:15:42]} {[%emt 00:01:27]} Re8 {[%clk 00:20:31]} {[%emt 00:02:31]} 19.
Bf4 {[%clk 00:11:52]} {[%emt 00:03:52]} e4 {[%clk 00:17:36]} {[%emt 00:03:13]}
20. dxe4 {[%clk 00:11:01]} {[%emt 00:01:01]} Nxe4 {[%clk 00:17:31]} {[%emt
00:00:15]} 21. Qb3 {[%clk 00:07:21]} {[%emt 00:03:29]} Na5 {[%clk 00:17:29]}
{[%emt 00:00:34]} 22. Qa4 {[%clk 00:05:30]} {[%emt 00:01:51]} Rde7 {[%clk
00:15:02]} {[%emt 00:02:47]} 23. Nd2 {[%clk 00:04:35]} {[%emt 00:01:04]} Qf5
{[%clk 00:14:54]} {[%emt 00:00:17]} 24. Nxe4 {[%clk 00:03:54]} {[%emt
00:00:54]} Rxe4 {[%clk 00:14:39]} {[%emt 00:00:25]} 25. Rxe4 {[%clk 00:03:40]}
{[%emt 00:00:23]} Rxe4 {[%clk 00:14:04]} {[%emt 00:00:44]} 26. Bxc7 {[%clk
00:03:20]} {[%emt 00:00:29]} Rxc4 {[%clk 00:14:02]} {[%emt 00:00:14]} 27. Qe8+
{[%clk 00:02:46]} {[%emt 00:00:42]} Kh7 {[%clk 00:13:59]} {[%emt 00:00:13]} 28.
Rc1 {[%clk 00:01:42]} {[%emt 00:01:16]} Rxc7 {[%clk 00:13:49]} {[%emt
00:00:20]} 29. Qb8 {[%clk 00:01:27]} {[%emt 00:00:20]} Qf4 {[%clk 00:12:15]}
{[%emt 00:01:49]} 30. Re1 {[%clk 00:00:52]} {[%emt 00:00:41]} Nc6 {[%clk
00:12:11]} {[%emt 00:00:14]} 31. Qe8 {[%emt 00:01:02]} 0-1



[ePGN "0.1;DGT LiveChess/2.2.6"]

[Event "MČR družstev mladších žáků 2024"]
[Site "Harrachov, Czech Republic"]
[Date "2024.06.15"]
[Round "6.19"]
[White "Policar Martin"]
[Black "Lickova Anna"]
[Result "1-0"]
[TimeControl "25+10"]
[WhiteFideId "23734868"]
[BlackFideId "23744359"]
[WhiteElo "1646"]
[BlackElo "1377"]

1. Nf3 {[%clk 00:25:15]} {[%emt 00:00:05]} d5 {[%clk 00:24:52]} {[%emt
00:00:28]} 2. g3 {[%clk 00:25:22]} {[%emt 00:00:03]} Nf6 {[%clk 00:24:58]}
{[%emt 00:00:04]} 3. Bg2 {[%clk 00:25:29]} {[%emt 00:00:02]} g6 {[%clk
00:24:46]} {[%emt 00:00:23]} 4. O-O {[%clk 00:25:34]} {[%emt 00:00:05]} Bg7
{[%clk 00:24:50]} {[%emt 00:00:06]} 5. d4 {[%clk 00:25:42]} {[%emt 00:00:01]}
O-O {[%clk 00:24:54]} {[%emt 00:00:06]} 6. c4 {[%clk 00:25:50]} {[%emt
00:00:01]} c5 {[%clk 00:24:10]} {[%emt 00:00:55]} 7. Nc3 {[%clk 00:25:58]}
{[%emt 00:00:03]} dxc4 {[%clk 00:21:13]} {[%emt 00:03:08]} 8. e3 {[%clk
00:25:02]} {[%emt 00:01:05]} Bg4 {[%clk 00:19:04]} {[%emt 00:02:19]} 9. Qa4
{[%clk 00:24:49]} {[%emt 00:00:23]} Nc6 {[%clk 00:16:37]} {[%emt 00:02:37]} 10.
Qxc4 {[%clk 00:24:51]} {[%emt 00:00:08]} cxd4 {[%clk 00:16:28]} {[%emt
00:00:19]} 11. Nxd4 {[%clk 00:24:55]} {[%emt 00:00:05]} Nxd4 {[%clk 00:15:50]}
{[%emt 00:00:48]} 12. exd4 {[%clk 00:24:48]} {[%emt 00:00:17]} Rc8 {[%clk
00:15:23]} {[%emt 00:00:38]} 13. Qb4 {[%clk 00:24:30]} {[%emt 00:00:27]} b6
{[%clk 00:14:29]} {[%emt 00:01:05]} 14. Be3 {[%clk 00:23:28]} {[%emt 00:01:12]}
Qd7 {[%clk 00:13:53]} {[%emt 00:00:46]} 15. Rfe1 {[%clk 00:22:37]} {[%emt
00:01:01]} Bh3 {[%clk 00:13:16]} {[%emt 00:00:47]} 16. Rad1 {[%clk 00:22:32]}
{[%emt 00:00:13]} Bxg2 {[%clk 00:11:29]} {[%emt 00:01:58]} 17. Kxg2 {[%clk
00:22:36]} {[%emt 00:00:07]} Nd5 {[%clk 00:11:03]} {[%emt 00:00:36]} 18. Nxd5
{[%clk 00:22:28]} {[%emt 00:00:18]} Qxd5+ {[%clk 00:11:11]} {[%emt 00:00:03]}
19. Kg1 {[%clk 00:22:35]} {[%emt 00:00:02]} e6 {[%clk 00:10:02]} {[%emt
00:01:19]} 20. b3 {[%clk 00:21:28]} {[%emt 00:01:17]} Rc7 {[%clk 00:09:19]}
{[%emt 00:00:53]} 21. Rc1 {[%clk 00:20:42]} {[%emt 00:00:55]} Rfc8 {[%clk
00:08:34]} {[%emt 00:00:55]} 22. Rxc7 {[%clk 00:20:35]} {[%emt 00:00:17]} Rxc7
{[%clk 00:08:43]} {[%emt 00:00:02]} 23. Rd1 {[%clk 00:19:50]} {[%emt 00:00:54]}
e5 {[%clk 00:07:59]} {[%emt 00:00:54]} 24. Qd2 {[%clk 00:19:16]} {[%emt
00:00:44]} exd4 {[%clk 00:07:42]} {[%emt 00:00:28]} 25. Bxd4 {[%clk 00:19:24]}
{[%emt 00:00:02]} Bxd4 {[%clk 00:07:48]} {[%emt 00:00:04]} 26. Qxd4 {[%clk
00:19:31]} {[%emt 00:00:02]} Qxd4 {[%clk 00:07:56]} {[%emt 00:00:03]} 27. Rxd4
{[%clk 00:19:39]} {[%emt 00:00:01]} Rc1+ {[%clk 00:08:04]} {[%emt 00:00:03]} 28.
Kg2 {[%clk 00:19:48]} {[%emt 00:00:01]} Rc2 {[%clk 00:08:12]} {[%emt 00:00:03]}
29. a4 {[%clk 00:19:49]} {[%emt 00:00:08]} Rc3 {[%clk 00:08:13]} {[%emt
00:00:08]} 30. b4 {[%clk 00:19:57]} {[%emt 00:00:03]} Rc7 {[%clk 00:08:15]}
{[%emt 00:00:07]} 31. Kf3 {[%clk 00:20:04]} {[%emt 00:00:04]} Kg7 {[%clk
00:08:20]} {[%emt 00:00:05]} 32. Rf4 {[%clk 00:19:55]} {[%emt 00:00:18]} Rc3+
{[%clk 00:08:25]} {[%emt 00:00:05]} 33. Ke2 {[%clk 00:19:59]} {[%emt 00:00:06]}
Ra3 {[%clk 00:08:18]} {[%emt 00:00:18]} 34. b5 {[%clk 00:20:04]} {[%emt
00:00:04]} Rc3 {[%clk 00:08:24]} {[%emt 00:00:04]} 35. Kd2 {[%clk 00:20:11]}
{[%emt 00:00:04]} Rc7 {[%clk 00:08:29]} {[%emt 00:00:05]} 36. Kd3 {[%clk
00:20:18]} {[%emt 00:00:03]} Rc5 {[%clk 00:08:36]} {[%emt 00:00:04]} 37. Rc4
{[%clk 00:19:49]} {[%emt 00:00:38]} Rd5+ {[%clk 00:08:39]} {[%emt 00:00:07]} 38.
Ke4 {[%clk 00:19:48]} {[%emt 00:00:11]} Rd7 {[%clk 00:08:34]} {[%emt 00:00:15]}
39. Rc2 {[%clk 00:19:41]} {[%emt 00:00:17]} f6 {[%clk 00:05:46]} {[%emt
00:02:57]} 40. h4 {[%clk 00:19:42]} {[%emt 00:00:09]} h5 {[%clk 00:04:12]}
{[%emt 00:01:44]} 41. Rc4 {[%clk 00:19:35]} {[%emt 00:00:17]} Kf7 {[%clk
00:03:32]} {[%emt 00:00:50]} 42. Rd4 {[%clk 00:19:38]} {[%emt 00:00:08]} Re7+
{[%clk 00:03:39]} {[%emt 00:00:03]} 43. Kf4 {[%clk 00:19:15]} {[%emt 00:00:32]}
Rc7 {[%clk 00:02:47]} {[%emt 00:01:02]} 44. g4 {[%clk 00:19:13]} {[%emt
00:00:13]} hxg4 {[%clk 00:02:41]} {[%emt 00:00:15]} 45. Kxg4 {[%clk 00:19:21]}
{[%emt 00:00:03]} Ke6 {[%clk 00:02:16]} {[%emt 00:00:34]} 46. f4 {[%clk
00:19:07]} {[%emt 00:00:24]} Rc5 {[%clk 00:02:08]} {[%emt 00:00:18]} 47. Re4+
{[%clk 00:18:53]} {[%emt 00:00:25]} Kf7 {[%clk 00:02:11]} {[%emt 00:00:07]} 48.
Rd4 {[%clk 00:18:54]} {[%emt 00:00:08]} Ke6 {[%clk 00:02:19]} {[%emt 00:00:02]}
49. Kf3 {[%clk 00:18:27]} {[%emt 00:00:37]} Rc3+ {[%clk 00:01:52]} {[%emt
00:00:38]} 50. Kg2 {[%clk 00:17:59]} {[%emt 00:00:38]} Rc2+ {[%clk 00:01:58]}
{[%emt 00:00:04]} 51. Kg3 {[%clk 00:17:46]} {[%emt 00:00:23]} Rc3+ {[%clk
00:02:05]} {[%emt 00:00:03]} 52. Kf2 {[%clk 00:17:54]} {[%emt 00:00:01]} Rh3
{[%clk 00:01:50]} {[%emt 00:00:25]} 53. Kg2 {[%clk 00:18:03]} {[%emt 00:00:02]}
Rc3 {[%clk 00:01:41]} {[%emt 00:00:19]} 54. Kf2 {[%clk 00:17:32]} {[%emt
00:00:40]} Rh3 {[%clk 00:01:42]} {[%emt 00:00:10]} 55. Rc4 {[%clk 00:17:31]}
{[%emt 00:00:11]} Ra3 {[%clk 00:00:54]} {[%emt 00:00:57]} 56. Kg2 {[%clk
00:16:11]} {[%emt 00:01:30]} Ra2+ {[%clk 00:01:01]} {[%emt 00:00:04]} 57. Kf3
{[%clk 00:16:15]} {[%emt 00:00:06]} Ra3+ {[%clk 00:01:07]} {[%emt 00:00:04]} 58.
Ke4 {[%clk 00:16:14]} {[%emt 00:00:11]} f5+ {[%clk 00:00:44]} {[%emt 00:00:33]}
59. Kd4 {[%clk 00:16:21]} {[%emt 00:00:02]} Rf3 {[%clk 00:00:32]} {[%emt
00:00:22]} 60. Rc6+ {[%clk 00:16:30]} {[%emt 00:00:02]} Kd7 {[%clk 00:00:41]}
{[%emt 00:00:01]} 61. Ke5 {[%clk 00:16:37]} {[%emt 00:00:02]} Ra3 {[%clk
00:00:15]} {[%emt 00:00:37]} 62. Rc4 {[%clk 00:16:32]} {[%emt 00:00:15]} Rh3
{[%clk 00:00:21]} {[%emt 00:00:04]} 63. Kf6 {[%clk 00:16:40]} {[%emt 00:00:02]}
Rg3 {[%clk 00:00:17]} {[%emt 00:00:14]} 64. Rd4+ {[%clk 00:16:43]} {[%emt
00:00:07]} Kc7 {[%clk 00:00:21]} {[%emt 00:00:06]} 65. Rc4+ {[%clk 00:16:27]}
{[%emt 00:00:26]} Kd7 {[%clk 00:00:30]} {[%emt 00:00:01]} 66. Kf7 {[%clk
00:16:06]} {[%emt 00:00:30]} Rg4 {[%clk 00:00:29]} {[%emt 00:00:12]} 67. Kg7
{[%clk 00:16:10]} {[%emt 00:00:06]} Kd6 {[%clk 00:00:25]} {[%emt 00:00:13]} 68.
Rc6+ {[%clk 00:15:53]} {[%emt 00:00:27]} Kd7 {[%clk 00:00:33]} {[%emt
00:00:03]} 69. Rxg6 {[%clk 00:14:31]} {[%emt 00:01:32]} Rxh4 {[%clk 00:00:37]}
{[%emt 00:00:06]} 70. Rf6 {[%clk 00:14:39]} {[%emt 00:00:01]} Rxf4 {[%clk
00:00:46]} {[%emt 00:00:02]} 71. Rf7+ {[%clk 00:14:48]} {[%emt 00:00:01]} Kd6
{[%clk 00:00:36]} {[%emt 00:00:20]} 72. Rxa7 {[%clk 00:14:56]} {[%emt
00:00:02]} Rg4+ {[%clk 00:00:40]} {[%emt 00:00:06]} 73. Kf6 {[%clk 00:15:04]}
{[%emt 00:00:02]} Rf4 {[%clk 00:00:28]} {[%emt 00:00:22]} 74. Kg5 {[%clk
00:15:07]} {[%emt 00:00:06]} Rf3 {[%clk 00:00:31]} {[%emt 00:00:07]} 75. Rf7
{[%clk 00:12:42]} {[%emt 00:02:35]} f4 {[%clk 00:00:15]} {[%emt 00:00:27]} 76.
Rf5 {[%clk 00:11:50]} {[%emt 00:01:02]} Rf1 {[%clk 00:00:14]} {[%emt 00:00:10]}
77. Kg4 {[%clk 00:11:40]} {[%emt 00:00:21]} Rg1+ {[%clk 00:00:17]} {[%emt
00:00:07]} 78. Kf3 {[%clk 00:11:30]} {[%emt 00:00:20]} Rf1+ {[%clk 00:00:24]}
{[%emt 00:00:02]} 79. Ke2 {[%clk 00:11:37]} {[%emt 00:00:03]} Ra1 {[%clk
00:00:16]} {[%emt 00:00:19]} 80. Rxf4 {[%clk 00:11:46]} {[%emt 00:00:02]} Kc5
{[%clk 00:00:18]} {[%emt 00:00:08]} 81. Kd2 {[%clk 00:11:47]} {[%emt 00:00:08]}
Ra2+ {[%clk 00:00:25]} {[%emt 00:00:03]} 82. Kc3 {[%clk 00:11:56]} {[%emt
00:00:01]} Ra1 {[%clk 00:00:16]} {[%emt 00:00:19]} 83. Rf5+ {[%clk 00:11:47]}
{[%emt 00:00:18]} Kd6 {[%clk 00:00:22]} {[%emt 00:00:05]} 84. Kb3 {[%clk
00:11:47]} {[%emt 00:00:10]} Rb1+ {[%clk 00:00:28]} {[%emt 00:00:05]} 85. Ka2
{[%clk 00:11:45]} {[%emt 00:00:10]} Rb4 {[%clk 00:00:34]} {[%emt 00:00:05]} 86.
Ka3 {[%clk 00:11:54]} Rb1 {[%clk 00:00:38]} {[%emt 00:00:06]} 87. Rf6+ {[%clk
00:11:56]} {[%emt 00:00:08]} Kc5 {[%clk 00:00:40]} {[%emt 00:00:07]} 88. Rc6+
{[%clk 00:12:05]} {[%emt 00:00:02]} Kd5 {[%clk 00:00:36]} {[%emt 00:00:15]} 89.
Rxb6 {[%clk 00:12:10]} {[%emt 00:00:04]} Ra1+ {[%clk 00:00:40]} {[%emt
00:00:05]} 90. Kb3 {[%clk 00:12:17]} {[%emt 00:00:03]} Rb1+ {[%clk 00:00:49]}
{[%emt 00:00:02]} 91. Ka2 {[%clk 00:12:26]} {[%emt 00:00:01]} Rb4 {[%clk
00:00:57]} {[%emt 00:00:02]} 92. Ka3 {[%clk 00:12:35]} Rb1 {[%clk 00:01:04]}
{[%emt 00:00:03]} 93. Rc6 {[%clk 00:12:32]} {[%emt 00:00:12]} Ra1+ {[%clk
00:00:52]} {[%emt 00:00:23]} 94. Kb3 {[%clk 00:12:41]} Rb1+ {[%clk 00:01:00]}
{[%emt 00:00:02]} 95. Ka2 {[%clk 00:12:49]} {[%emt 00:00:01]} Rb4 {[%clk
00:01:03]} {[%emt 00:00:07]} 96. Ka3 {[%clk 00:12:58]} {[%emt 00:00:02]} Rb1
{[%clk 00:01:11]} {[%emt 00:00:01]} 97. Rc2 {[%clk 00:13:07]} Ra1+ {[%clk
00:00:37]} {[%emt 00:00:45]} 98. Kb4 {[%clk 00:13:02]} {[%emt 00:00:15]} Rb1+
{[%clk 00:00:33]} {[%emt 00:00:14]} 99. Ka5 {[%clk 00:13:11]} {[%emt 00:00:01]}
Kd6 {[%clk 00:00:16]} {[%emt 00:00:27]} 100. Ka6 {[%clk 00:13:12]} {[%emt
00:00:09]} Rb4 {[%clk 00:00:16]} {[%emt 00:00:10]} 101. a5 {[%clk 00:13:20]}
{[%emt 00:00:02]} Kd7 {[%clk 00:00:15]} {[%emt 00:00:10]} 102. b6 {[%clk
00:13:27]} {[%emt 00:00:04]} Rb3 {[%clk 00:00:14]} {[%emt 00:00:11]} 103. Ka7
{[%clk 00:13:35]} {[%emt 00:00:02]} Rb5 {[%clk 00:00:20]} {[%emt 00:00:03]} 104.
a6 {[%clk 00:13:44]} {[%emt 00:00:02]} Rb4 {[%clk 00:00:16]} {[%emt 00:00:14]}
105. b7 {[%clk 00:13:52]} {[%emt 00:00:02]} Rb5 {[%clk 00:00:15]} {[%emt
00:00:11]} 106. b8=Q {[%clk 00:13:53]} {[%emt 00:00:08]} Rxb8 {[%clk 00:00:15]}
{[%emt 00:00:10]} 107. Kxb8 {[%clk 00:14:00]} {[%emt 00:00:03]} Kd6 {[%clk
00:00:23]} {[%emt 00:00:02]} 108. a7 {[%clk 00:14:09]} {[%emt 00:00:02]} Ke5
{[%clk 00:00:31]} {[%emt 00:00:02]} 109. a8=Q {[%clk 00:14:16]} {[%emt
00:00:02]} Kd4 {[%clk 00:00:38]} {[%emt 00:00:03]} 110. Qc6 {[%clk 00:14:19]}
{[%emt 00:00:07]} Ke5 {[%clk 00:00:45]} {[%emt 00:00:04]} 111. Qd7 {[%clk
00:14:24]} {[%emt 00:00:04]} Ke4 {[%clk 00:00:52]} {[%emt 00:00:03]} 112. Re2+
{[%clk 00:14:30]} {[%emt 00:00:04]} Kf3 {[%clk 00:01:00]} {[%emt 00:00:02]} 113.
Qd3+ {[%clk 00:14:38]} {[%emt 00:00:02]} Kf4 {[%clk 00:01:06]} {[%emt
00:00:05]} 114. Qd4+ {[%clk 00:14:42]} {[%emt 00:00:05]} Kg3 {[%clk 00:01:11]}
{[%emt 00:00:06]} 115. Qf2+ {[%clk 00:14:49]} {[%emt 00:00:02]} Kg4 {[%clk
00:01:16]} {[%emt 00:00:05]} 116. Re3 {[%clk 00:14:56]} {[%emt 00:00:03]} Kg5
{[%clk 00:01:23]} {[%emt 00:00:04]} 117. Rg3+ {[%clk 00:15:04]} {[%emt
00:00:01]} Kh6 {[%clk 00:01:31]} {[%emt 00:00:02]} 118. Qh2# {[%clk 00:15:13]}
{[%emt 00:00:02]} 1-0



[ePGN "0.1;DGT LiveChess/2.2.6"]

[Event "MČR družstev mladších žáků 2024"]
[Site "Harrachov, Czech Republic"]
[Date "2024.06.15"]
[Round "6.2"]
[White "Artamonov Mikhail"]
[Black "Tykalova Barbora"]
[Result "1/2-1/2"]
[TimeControl "25+10"]
[WhiteFideId "23732946"]
[BlackFideId "23750898"]
[WhiteElo "1515"]
[BlackElo "1284"]

1. e4 {[%clk 00:25:19]} {[%emt 00:00:01]} e5 {[%clk 00:25:07]} {[%emt
00:00:13]} 2. Nf3 {[%clk 00:25:27]} {[%emt 00:00:02]} Nc6 {[%clk 00:25:09]}
{[%emt 00:00:07]} 3. d4 {[%clk 00:25:36]} {[%emt 00:00:02]} exd4 {[%clk
00:25:10]} {[%emt 00:00:09]} 4. c3 {[%clk 00:25:44]} {[%emt 00:00:02]} d5
{[%clk 00:24:52]} {[%emt 00:00:28]} 5. exd5 {[%clk 00:25:16]} {[%emt 00:00:37]}
Qxd5 {[%clk 00:24:56]} {[%emt 00:00:05]} 6. cxd4 {[%clk 00:25:09]} {[%emt
00:00:17]} Bg4 {[%clk 00:25:02]} {[%emt 00:00:05]} 7. Be2 {[%clk 00:25:16]}
{[%emt 00:00:03]} Bb4+ {[%clk 00:25:02]} {[%emt 00:00:09]} 8. Nc3 {[%clk
00:25:23]} {[%emt 00:00:04]} Bxf3 {[%clk 00:25:02]} {[%emt 00:00:10]} 9. Bxf3
{[%clk 00:25:31]} {[%emt 00:00:02]} Qc4 {[%clk 00:24:59]} {[%emt 00:00:13]} 10.
Bxc6+ {[%clk 00:23:51]} {[%emt 00:01:50]} Qxc6 {[%clk 00:25:02]} {[%emt
00:00:07]} 11. Qf3 {[%clk 00:17:38]} {[%emt 00:06:21]} Qxf3 {[%clk 00:24:06]}
{[%emt 00:01:08]} 12. gxf3 {[%clk 00:17:46]} {[%emt 00:00:02]} Ne7 {[%clk
00:23:39]} {[%emt 00:00:26]} 13. O-O {[%clk 00:16:03]} {[%emt 00:02:04]} O-O-O
{[%clk 00:23:09]} {[%emt 00:00:39]} 14. Be3 {[%clk 00:14:16]} {[%emt 00:01:56]}
Bxc3 {[%clk 00:22:43]} {[%emt 00:00:37]} 15. bxc3 {[%clk 00:14:23]} {[%emt
00:00:04]} Nf5 {[%clk 00:22:29]} {[%emt 00:00:23]} 16. Kh1 {[%clk 00:12:50]}
{[%emt 00:01:43]} Nxe3 {[%clk 00:22:12]} {[%emt 00:00:27]} 17. fxe3 {[%clk
00:12:58]} {[%emt 00:00:02]} Rd5 {[%clk 00:21:44]} {[%emt 00:00:34]} 18. e4
{[%clk 00:12:13]} {[%emt 00:00:59]} Ra5 {[%clk 00:21:47]} {[%emt 00:00:07]} 19.
e5 {[%clk 00:10:38]} {[%emt 00:01:45]} Kd7 {[%clk 00:21:37]} {[%emt 00:00:19]}
20. Rg1 {[%clk 00:09:48]} {[%emt 00:01:00]} g6 {[%clk 00:21:24]} {[%emt
00:00:23]} 21. Rge1 {[%clk 00:09:56]} {[%emt 00:00:02]} Re8 {[%clk 00:20:06]}
{[%emt 00:01:28]} 22. f4 {[%clk 00:09:25]} {[%emt 00:00:41]} Ke6 {[%clk
00:20:06]} {[%emt 00:00:10]} 23. Kg2 {[%clk 00:08:36]} {[%emt 00:01:00]} Ra3
{[%clk 00:20:06]} {[%emt 00:00:09]} 24. Re3 {[%clk 00:08:25]} {[%emt 00:00:21]}
Kf5 {[%clk 00:19:50]} {[%emt 00:00:26]} 25. Kf3 {[%clk 00:08:08]} {[%emt
00:00:27]} Re6 {[%clk 00:19:14]} {[%emt 00:00:46]} 26. Rg1 {[%clk 00:07:24]}
{[%emt 00:00:54]} 1/2-1/2



[ePGN "0.1;DGT LiveChess/2.2.6"]

[Event "MČR družstev mladších žáků 2024"]
[Site "Harrachov, Czech Republic"]
[Date "2024.06.15"]
[Round "6.20"]
[White "Havlik David"]
[Black "Sudrich Radek"]
[Result "1/2-1/2"]
[TimeControl "25+10"]
[WhiteFideId "23751525"]
[BlackFideId "23734361"]
[WhiteElo "1348"]
[BlackElo "1470"]

1. e4 {[%clk 00:25:18]} {[%emt 00:00:02]} c5 {[%clk 00:25:19]} {[%emt
00:00:01]} 2. Nf3 {[%clk 00:25:27]} {[%emt 00:00:01]} e6 {[%clk 00:25:28]} 3.
d4 {[%clk 00:25:36]} {[%emt 00:00:01]} cxd4 {[%clk 00:25:37]} {[%emt 00:00:02]}
4. Nxd4 {[%clk 00:25:45]} {[%emt 00:00:01]} Nf6 {[%clk 00:25:45]} {[%emt
00:00:02]} 5. Nc3 {[%clk 00:25:53]} Nc6 {[%clk 00:25:54]} {[%emt 00:00:01]} 6.
Ndb5 {[%clk 00:26:02]} {[%emt 00:00:01]} Bb4 {[%clk 00:26:01]} {[%emt
00:00:03]} 7. a3 {[%clk 00:26:10]} {[%emt 00:00:03]} Bxc3+ {[%clk 00:26:09]}
{[%emt 00:00:01]} 8. Nxc3 {[%clk 00:26:19]} {[%emt 00:00:02]} O-O {[%clk
00:25:47]} {[%emt 00:00:32]} 9. Qd6 {[%clk 00:26:25]} {[%emt 00:00:03]} Qe7
{[%clk 00:25:47]} {[%emt 00:00:10]} 10. Qxe7 {[%clk 00:26:06]} {[%emt
00:00:29]} Nxe7 {[%clk 00:25:54]} {[%emt 00:00:03]} 11. Be3 {[%clk 00:25:46]}
{[%emt 00:00:30]} b6 {[%clk 00:25:50]} {[%emt 00:00:14]} 12. O-O-O {[%clk
00:25:35]} {[%emt 00:00:21]} d5 {[%clk 00:25:28]} {[%emt 00:00:32]} 13. exd5
{[%clk 00:25:20]} {[%emt 00:00:25]} Nexd5 {[%clk 00:25:31]} {[%emt 00:00:08]}
14. Nxd5 {[%clk 00:25:13]} {[%emt 00:00:16]} Nxd5 {[%clk 00:25:39]} {[%emt
00:00:02]} 15. Bd4 {[%clk 00:25:15]} {[%emt 00:00:08]} Bb7 {[%clk 00:25:35]}
{[%emt 00:00:13]} 16. c4 {[%clk 00:24:47]} {[%emt 00:00:39]} Rac8 {[%clk
00:25:19]} {[%emt 00:00:26]} 17. Kd2 {[%clk 00:24:29]} {[%emt 00:00:28]} Ne7
{[%clk 00:25:09]} {[%emt 00:00:19]} 18. Ke1 {[%clk 00:21:41]} {[%emt 00:02:59]}
Rfd8 {[%clk 00:24:53]} {[%emt 00:00:21]} 19. f3 {[%clk 00:21:06]} {[%emt
00:00:51]} Nf5 {[%clk 00:24:31]} {[%emt 00:00:31]} 20. Bf2 {[%clk 00:20:18]}
{[%emt 00:00:58]} Rxd1+ {[%clk 00:24:06]} {[%emt 00:00:35]} 21. Kxd1 {[%clk
00:20:21]} {[%emt 00:00:07]} Rd8+ {[%clk 00:24:15]} {[%emt 00:00:02]} 22. Kc2
{[%clk 00:20:16]} {[%emt 00:00:14]} Nd4+ {[%clk 00:23:37]} {[%emt 00:00:41]} 23.
Bxd4 {[%clk 00:19:22]} {[%emt 00:01:11]} Rxd4 {[%clk 00:23:45]} {[%emt
00:00:02]} 24. Bd3 {[%clk 00:19:29]} {[%emt 00:00:03]} Kf8 {[%clk 00:23:45]}
{[%emt 00:00:10]} 25. Kc3 {[%clk 00:19:10]} {[%emt 00:00:29]} Rd6 {[%clk
00:23:49]} {[%emt 00:00:05]} 26. h4 {[%clk 00:18:53]} {[%emt 00:00:29]} h6
{[%clk 00:23:54]} {[%emt 00:00:04]} 27. Re1 {[%clk 00:18:31]} {[%emt 00:00:31]}
Ke7 {[%clk 00:23:28]} {[%emt 00:00:29]} 28. b4 {[%clk 00:17:58]} {[%emt
00:00:51]} Kd7 {[%clk 00:22:39]} {[%emt 00:00:59]} 29. Be4 {[%clk 00:17:24]}
{[%emt 00:00:44]} Bxe4 {[%clk 00:22:23]} {[%emt 00:00:26]} 30. Rxe4 {[%clk
00:17:29]} {[%emt 00:00:03]} Rc6 {[%clk 00:21:13]} {[%emt 00:01:22]} 31. a4
{[%clk 00:16:55]} {[%emt 00:00:44]} a6 {[%clk 00:20:34]} {[%emt 00:00:49]} 32.
f4 {[%clk 00:16:20]} {[%emt 00:00:46]} Kd6 {[%clk 00:19:03]} {[%emt 00:01:40]}
33. Rd4+ {[%clk 00:16:18]} {[%emt 00:00:13]} Kc7 {[%clk 00:18:13]} {[%emt
00:00:48]} 34. Kd3 {[%clk 00:16:01]} {[%emt 00:00:39]} 1/2-1/2



[ePGN "0.1;DGT LiveChess/2.2.6"]